bitfinex-derivatives/quotes_SOLF0:USTF0_20251201
["timestamp","ask_amount","ask_price","bid_price","bid_amount"]
[1764599545639,117.36566605,125.81,125.72,28.04]
[1764599546038,13.22046605,125.81,125.73,7.1592]
[1764599546242,3.29,125.8,125.73,7.1592]
[1764599546546,0.05110608,125.78,125.75,0.81569687]
[1764599546746,0.05110608,125.78,125.75,0.05569687]
[1764599546952,3.34110608,125.78,125.75,0.05569687]
[1764599547248,0.05110608,125.78,125.75,0.81569687]
[1764599547438,0.05110608,125.78,125.77,0.76]
[1764599547646,6.06516605,125.86,125.77,0.76]
[1764599547850,3.29,125.85,125.78,28.06]
[1764599548046,10.4432,125.84,125.77,28.82]
[1764599548251,3.23,125.83,125.74,111.3528]
[1764599548439,3.23,125.82,125.72,173.3703]
[1764599548645,3.23,125.78,125.72,62.0]
[1764599548846,3.23,125.78,125.72,28.06]
[1764599549049,3.23,125.78,125.71,28.06]
[1764599549252,3.23,125.78,125.72,7.1596]
[1764599549654,0.05742302,125.76,125.74,0.05471446]
[1764599550543,0.05742302,125.76,125.74,0.86471446]
[1764599550746,0.05742302,125.76,125.74,28.92471446]
[1764599551848,3.23,125.82,125.75,0.81]
[1764599552450,3.23,125.82,125.76,7.1572]
[1764599552854,0.05041448,125.8,125.78,0.86416707]
[1764599553052,0.05388592,125.8,125.78,0.05025402]
[1764599553952,0.05388592,125.8,125.78,0.86025402]
[1764599554248,3.23,125.86,125.78,0.86025402]
[1764599554249,3.23,125.85,125.78,0.05025402]
[1764599554444,3.23,125.85,125.79,28.06]
[1764599554649,3.23,125.85,125.78,28.06]
[1764599554950,7.1533,125.84,125.78,28.06]
[1764599555149,0.05647594,125.82,125.79,0.81]
[1764599555349,0.05647594,125.82,125.78,28.06]
[1764599555350,3.23,125.88,125.8,0.86978908]
[1764599555548,3.23,125.87,125.83,0.05352478]
[1764599555753,0.05498146,125.85,125.83,0.05352478]
[1764599557452,0.05498146,125.85,125.83,0.86352478]
[1764599557744,0.05498146,125.85,125.83,0.05352478]
[1764599558354,3.28498146,125.85,125.83,0.05352478]
[1764599558651,0.05498146,125.85,125.83,0.86352478]
[1764599559247,0.05498146,125.85,125.83,0.05352478]
[1764599559947,0.05498146,125.85,125.83,0.86352478]
[1764599560149,0.05498146,125.85,125.83,28.09352478]
[1764599560742,0.05498146,125.85,125.83,0.05352478]
[1764599562055,0.05498146,125.85,125.83,0.86352478]
[1764599563243,7.1509,125.88,125.84,0.81]
[1764599563653,7.1509,125.88,125.83,7.20692478]
[1764599563654,7.1496,125.91,125.85,0.81]
[1764599563860,8.42190971,125.95,125.85,0.81]
[1764599564254,0.05752416,125.91,125.88,0.8604132]
[1764599565145,3.28752416,125.91,125.88,0.0504132]
[1764599566662,0.05752416,125.91,125.88,0.0504132]
[1764599567661,0.05752416,125.91,125.89,0.81]
[1764599568552,0.05752416,125.91,125.89,7.9599]
[1764599569758,0.05752416,125.91,125.9,0.81]
[1764599570064,112.52820413,125.99,125.89,0.81]
[1764599570065,3.2,125.96,125.89,0.81]
[1764599570259,10.3464,125.96,125.89,0.81]
[1764599570464,10.3464,125.96,125.89,35.9601]
[1764599570767,3.2,125.96,125.89,28.81]
[1764599570968,0.05558243,125.94,125.91,0.05686746]
[1764599571262,0.05558243,125.94,125.91,8.01586746]
[1764599571658,0.05558243,125.94,125.92,0.81]
[1764599571859,0.05558243,125.94,125.91,0.86686746]
[1764599572761,3.25558243,125.94,125.91,0.05686746]
[1764599573158,0.05558243,125.94,125.91,0.86686746]
[1764599573566,3.2,126.01,125.94,7.9571]
[1764599573762,3.2,126.01,125.94,0.81]
[1764599574255,3.2,125.98,125.89,0.81]
[1764599574459,0.05633276,125.95,125.92,0.05184333]
[1764599575258,0.05633276,125.95,125.92,0.86184333]
[1764599575864,3.2,126.01,125.93,0.81]
[1764599576072,3.2,126.01,125.94,0.81]
[1764599576264,3.2,126.01,125.95,28.0]
[1764599576460,3.2,126.01,125.95,35.1465]
[1764599576862,0.05052938,125.99,125.98,0.81]
[1764599577168,3.2,126.08,125.99,0.81]
[1764599577369,3.2,126.08,126.0,27.98]
[1764599577568,3.2,126.08,126.0,35.1238]
[1764599577966,3.25220664,126.05,126.03,0.05517432]
[1764599578162,3.25188932,126.05,126.03,0.05517432]
[1764599578363,0.05188932,126.05,126.03,0.05517432]
[1764599579068,0.05188932,126.05,126.03,0.86517432]
[1764599579673,3.25188932,126.05,126.03,0.05517432]
[1764599579876,3.2,126.04,125.96,0.81]
[1764599580171,3.2,126.04,125.96,7.956]
[1764599580372,3.2,126.01,125.92,0.86]
[1764599580562,3.2,126.01,125.92,112.0588]
[1764599580563,11.62190971,126.01,125.92,112.0588]
[1764599580758,3.2,125.97,125.95,0.05369516]
[1764599580960,3.2,125.97,125.89,0.86]
[1764599581164,3.2,126.01,125.93,0.91]
[1764599581363,114.3217,126.01,125.93,28.0]
[1764599581565,3.2,126.0,125.92,28.02]
[1764599581965,0.05513184,125.97,125.95,0.05033741]
[1764599582367,3.2,125.96,125.9,7.1495]
[1764599582565,3.2,125.96,125.84,445.0675]
[1764599582566,3.2,125.94,125.84,112.2233]
[1764599582768,3.2,125.94,125.85,28.0]
[1764599582968,10.3484,125.93,125.84,119.3759]
[1764599583168,10.3484,125.93,125.85,28.02]
[1764599583377,0.0552161,125.9,125.88,0.05653796]
[1764599583677,114.3569,125.97,125.88,1.01653796]
[1764599583880,114.3569,125.97,125.88,0.96]
[1764599584176,10.3466,125.96,125.88,36.1303]
[1764599584577,119.56640971,125.99,125.9,0.96]
[1764599584771,8.42190971,126.01,125.92,0.96]
[1764599585075,3.2,126.03,125.96,0.96]
[1764599585274,3.2,126.03,125.93,119.60720971]
[1764599585275,114.3064,126.03,125.93,120.56720971]
[1764599585469,3.25996622,126.01,125.98,0.05421166]
[1764599586274,3.2,126.0,125.92,28.02]
[1764599586475,3.2,126.0,125.9,9.44190971]
[1764599586671,10.3445,126.0,125.92,1.02]
[1764599587179,111.1147,126.02,125.92,1.02]
[1764599587180,0.05643693,125.97,125.96,1.02]
[1764599587377,0.05741036,125.98,125.95,1.07521863]
[1764599587970,0.05741036,125.98,125.96,63.02]
[1764599588174,0.05741036,125.98,125.97,1.02]
[1764599588484,121.4397,126.04,125.97,1.02]
[1764599588485,7.142,126.04,125.97,1.02]
[1764599589477,0.06002511,126.03,126.02,1.02]
[1764599589881,3.2,126.11,126.02,113.7123]
[1764599590188,3.2,126.11,126.03,7.142]
[1764599590574,3.2,126.11,126.04,7.1415]
[1764599590777,3.2,126.11,126.06,0.05959947]
[1764599590778,0.05389528,126.09,126.06,0.05959947]
[1764599591073,3.25389528,126.09,126.06,0.05959947]
[1764599591280,3.2,126.08,126.0,28.02]
[1764599591585,3.2,126.07,125.97,8.42190971]
[1764599591781,3.2,126.03,125.92,112.2732]
[1764599591982,3.2,126.01,125.93,28.02]
[1764599592179,3.2,126.0,125.96,0.05225802]
[1764599592380,3.25768487,125.98,125.96,0.05225802]
[1764599592879,3.2,125.97,125.88,1.08]
[1764599593084,3.2,125.94,125.86,28.02]
[1764599593285,111.1503,125.98,125.86,28.02]
[1764599593286,8.42190971,125.98,125.88,111.2317]
[1764599593479,11.62190971,125.98,125.9,111.2172]
[1764599593680,3.2,125.98,125.92,7.1483]
[1764599593872,3.2,125.98,125.91,111.209]
[1764599594180,0.05595482,125.96,125.94,0.05666946]
[1764599595179,0.05595482,125.96,125.94,7.20386946]
[1764599595377,0.05595482,125.96,125.94,8.33386946]
[1764599595683,3.2,126.02,125.94,36.35386946]
[1764599595881,11.62190971,126.06,125.96,111.1614]
[1764599596187,11.62190971,126.06,125.96,112.2914]
[1764599596188,3.2,126.05,125.96,112.2914]
[1764599596381,3.2,126.05,125.98,7.1449]
[1764599596584,0.05557795,126.03,126.0,1.18046942]
[1764599597084,3.25557795,126.03,126.0,0.05046942]
[1764599597683,3.25557795,126.03,125.92,9.55190971]
[1764599597885,3.2,126.03,125.92,9.55190971]
[1764599598086,3.2,126.03,125.93,28.02]
[1764599598378,3.2,126.02,125.94,1.13]
[1764599598784,0.05528981,125.99,125.97,1.18871884]
[1764599599096,0.05473909,125.99,125.97,1.18249626]
[1764599600187,0.05473909,125.99,125.97,0.05249626]
[1764599600992,0.05473909,125.99,125.97,1.19249626]
[1764599601184,0.05473909,125.99,125.97,0.05249626]
[1764599602095,7.1408,126.06,125.98,8.2852]
[1764599602290,7.1408,126.06,125.98,1.14]
[1764599602491,10.2308,126.06,125.98,1.14]
[1764599602796,10.2308,126.06,125.98,29.16]
[1764599602994,3.09,126.06,126.0,7.1437]
[1764599603196,0.0546276,126.04,126.02,0.05875431]
[1764599604589,0.0546276,126.04,126.02,1.19875431]
[1764599604789,10.2288,126.1,126.03,29.14]
[1764599605189,10.2288,126.1,126.04,7.1413]
[1764599605805,0.05098583,126.08,126.06,0.05659592]
[1764599607497,0.05098583,126.08,126.06,7.19699592]
[1764599607703,0.05098583,126.08,126.07,1.14]
[1764599608096,0.05098583,126.08,126.06,35.17699592]
[1764599608504,0.05098583,126.08,126.06,0.05659592]
[1764599610300,0.05098583,126.08,126.06,1.19659592]
[1764599610496,3.37,126.14,126.06,1.19659592]
[1764599610699,3.37,126.14,126.06,1.14]
[1764599610899,3.37,126.14,126.07,112.2055]
[1764599611205,3.37,126.18,126.09,112.1887]
[1764599611398,3.37,126.17,126.11,7.1376]
[1764599611602,0.05254543,126.15,126.13,0.05337415]
[1764599611802,3.37,126.14,126.13,0.05337415]
[1764599612303,3.42254543,126.15,126.13,0.05337415]
[1764599614199,3.37,126.14,126.08,1.14]
[1764599614403,3.37,126.14,126.07,27.98]
[1764599614999,3.37,126.14,126.07,36.2599]
[1764599615198,110.9738,126.18,126.09,0.05575684]
[1764599615497,3.42636581,126.15,126.12,0.05731121]
[1764599616798,7.1362,126.14,126.12,0.05731121]
[1764599617000,3.37,126.13,126.04,62.0]
[1764599617305,3.37,126.11,126.03,1.14]
[1764599617704,114.4235,126.09,126.0,1.14]
[1764599617908,3.37,126.08,126.0,27.98]
[1764599618202,0.06028339,126.05,126.03,0.05103928]
[1764599618599,0.06028339,126.05,126.03,1.19103928]
[1764599618796,3.37,126.11,126.03,1.19103928]
[1764599619001,3.37,126.11,126.03,1.14]
[1764599619396,110.9766,126.18,126.05,1.14]
[1764599619397,3.37,126.15,126.05,1.14]
[1764599619602,3.37,126.15,126.06,1.14]
[1764599619804,0.0536937,126.12,126.09,0.06112693]
[1764599620202,0.0536937,126.12,126.09,1.20112693]
[1764599620603,110.9766,126.18,126.09,1.20112693]
[1764599620803,3.37,126.17,126.09,1.14]
[1764599621310,7.1356,126.15,126.09,8.2785]
[1764599621509,0.05246264,126.13,126.11,0.05170923]
[1764599622504,0.05246264,126.13,126.11,7.18940923]
[1764599623002,0.05246264,126.13,126.11,8.32940923]
[1764599623207,3.42246264,126.13,126.11,0.05170923]
[1764599623406,3.42246264,126.13,126.04,1.14]
[1764599623714,3.37,126.1,126.0,112.2631]
[1764599623908,3.37,126.1,126.01,27.96]
[1764599624112,3.37,126.09,126.0,1.14]
[1764599624314,3.37,126.09,126.01,27.96]
[1764599624514,0.05815549,126.06,126.04,0.05026354]
[1764599625605,0.05815549,126.06,126.04,1.19026354]
[1764599627009,0.05815549,126.06,126.04,0.05026354]
[1764599628917,3.42815549,126.06,126.04,0.05026354]
[1764599629114,0.05815549,126.06,126.04,0.05026354]
[1764599629825,0.05815549,126.06,126.04,1.19026354]
[1764599630907,3.16815549,126.06,126.04,0.05026354]
[1764599631518,0.05815549,126.06,126.04,0.05026354]
[1764599632617,124.15041422,126.14,126.04,0.05026354]
[1764599632618,7.2883924,126.17,126.04,1.19026354]
[1764599632822,5.22278492,126.17,126.13,1.08]
[1764599633021,3.11,126.22,126.15,1.08]
[1764599633834,0.04601638,126.2,126.17,0.05911171]
[1764599634431,3.15601638,126.2,126.17,0.05911171]
[1764599635138,0.04601638,126.2,126.17,0.05911171]
[1764599636238,0.04601638,126.2,126.17,1.13911171]
[1764599636438,0.04601638,126.2,126.17,0.05911171]
[1764599637330,3.15601638,126.2,126.17,0.05911171]
[1764599638239,3.11,126.19,126.1,8.218]
[1764599638441,113.63584806,126.23,126.14,111.0064]
[1764599638442,3.11,126.23,126.14,111.0064]
[1764599638740,3.11,126.23,126.15,7.1352]
[1764599638942,3.11,126.23,126.14,1.08]
[1764599639242,113.61023828,126.26,126.14,1.08]
[1764599639243,0.0513594,126.2,126.18,1.08]
[1764599639427,0.0606749,126.2,126.18,1.13842292]
[1764599640444,3.11,126.29,126.2,1.02]
[1764599640632,3.11,126.29,126.18,110.9689]
[1764599640831,7.1283,126.28,126.17,8.154]
[1764599641034,3.11,126.26,126.16,1.02]
[1764599641336,3.11,126.26,126.18,111.989]
[1764599641539,110.8369,126.34,126.22,111.9546]
[1764599641745,3.11,126.33,126.25,0.98]
[1764599641947,3.11,126.33,126.26,0.98]
[1764599642245,3.11,126.33,126.26,28.98]
[1764599642741,3.11,126.33,126.28,0.05762635]
[1764599643941,3.11,126.3,126.19,118.2662157]
[1764599644139,3.11,126.29,126.18,119.3158157]
[1764599644445,3.11,126.29,126.16,120.66431406]
[1764599644446,3.11,126.26,126.16,7.3080157]
[1764599644639,3.11,126.26,126.15,29.04]
[1764599644839,0.05602078,126.22,126.19,0.05542386]
[1764599645148,3.16602078,126.22,126.19,0.05542386]
[1764599646336,3.16602078,126.22,126.13,120.68621406]
[1764599646337,3.16602078,126.22,126.13,139.008]
[1764599646546,3.11,126.22,126.13,139.008]
[1764599646947,3.11,126.22,126.13,140.098]
[1764599647339,0.05043107,126.19,126.16,0.05206009]
[1764599648751,0.05043107,126.19,126.16,1.14206009]
[1764599648961,0.05043107,126.19,126.17,1.09]
[1764599649250,0.05043107,126.19,126.16,0.05206009]
[1764599649553,3.11,126.31,126.22,111.9725]
[1764599649850,3.11,126.34,126.24,1.04]
[1764599650158,3.11,126.32,126.24,1.04]
[1764599650453,0.05603769,126.29,126.27,0.05838047]
[1764599651448,0.05603769,126.29,126.27,1.09838047]
[1764599652048,0.05603769,126.29,126.28,1.04]
[1764599652647,3.11,126.35,126.28,70.1678]
[1764599652846,3.11,126.35,126.29,27.98]
[1764599653353,3.11,126.35,126.28,89.98]
[1764599653552,3.11,126.35,126.3,0.05657464]
[1764599654450,113.9354,126.35,126.3,0.05657464]
[1764599654754,3.11,126.33,126.3,0.05657464]
[1764599655247,3.11,126.33,126.21,124.07861422]
[1764599655248,3.11,126.3,126.21,14.43937868]
[1764599655452,3.11,126.3,126.22,28.0]
[1764599655852,10.2374,126.3,126.22,28.0]
[1764599656242,0.05502483,126.27,126.25,0.05105588]
[1764599656948,0.05502483,126.27,126.25,1.15105588]
[1764599657552,0.05502483,126.27,126.25,0.05105588]
[1764599658054,0.05502483,126.27,126.25,1.15105588]
[1764599658452,0.05502483,126.27,126.25,0.05105588]
[1764599659056,0.05502483,126.27,126.25,1.15105588]
[1764599659650,3.11,126.36,126.26,1.1]
[1764599659846,3.11,126.33,126.26,27.98]
[1764599660046,3.41,126.36,126.27,1.09]
[1764599660647,3.41,126.36,126.3,0.06088955]
[1764599661049,3.41,126.34,126.3,0.06088955]
[1764599661249,3.41,126.34,126.27,29.07]
[1764599661250,3.41,126.42,126.31,1.14512857]
[1764599661461,3.41,126.41,126.34,0.05584144]
[1764599661660,7.122,126.4,126.34,7.1248]
[1764599661857,3.41,126.41,126.36,0.05140225]
[1764599662059,110.7441,126.44,126.36,1.14140225]
[1764599662060,114.1541,126.44,126.36,1.14140225]
[1764599662265,3.41,126.43,126.39,0.05797225]
[1764599664453,8.25868062,126.45,126.39,0.05797225]
[1764599664665,3.41,126.44,126.39,0.05797225]
[1764599664959,3.41,126.42,126.39,0.05797225]
[1764599665154,3.41,126.42,126.32,138.8278]
[1764599665459,3.41,126.42,126.32,139.9778]
[1764599665845,3.41,126.42,126.33,1.15]
[1764599666048,0.05942053,126.39,126.37,1.15]
[1764599666258,0.05942053,126.39,126.37,1.2081222]
[1764599667162,0.05942053,126.39,126.37,0.0581222]
[1764599667358,3.46942053,126.39,126.37,0.0581222]
[1764599667861,114.1429,126.37,126.26,14.28801422]
[1764599668059,3.33,126.34,126.24,110.9175]
[1764599668758,0.05471192,126.3,126.28,0.0596265]
[1764599670166,3.38471192,126.3,126.28,0.0596265]
[1764599671363,0.05471192,126.3,126.28,0.0596265]
[1764599671567,3.38471192,126.3,126.28,0.0596265]
[1764599671967,3.38471192,126.3,126.23,1.15]
[1764599672264,3.33,126.28,126.19,29.09]
[1764599672466,3.33,126.28,126.19,1.15]
[1764599672663,10.4589,126.27,126.19,1.15]
[1764599672859,3.33,126.27,126.19,8.2831]
[1764599673168,249.5994,126.35,126.22,1.20807324]
[1764599673169,0.05491347,126.24,126.22,1.20807324]
[1764599673462,0.0500807,126.24,126.23,7.1308]
[1764599673768,0.0500807,126.24,126.22,1.20532044]
[1764599674159,0.0500807,126.24,126.22,0.05532044]
[1764599674968,3.3800807,126.24,126.22,0.05532044]
[1764599676458,0.0500807,126.24,126.22,0.05532044]
[1764599676661,0.0500807,126.24,126.22,1.20532044]
[1764599677369,0.0500807,126.24,126.22,8.33652044]
[1764599677669,0.0500807,126.24,126.22,0.05532044]
[1764599677872,0.0500807,126.24,126.16,9.67821406]
[1764599677873,3.3800807,126.24,126.15,118.30067868]
[1764599678064,3.33,126.24,126.16,27.94]
[1764599678259,3.33,126.24,126.15,119.51067868]
[1764599678260,10.4625,126.21,126.13,14.44377868]
[1764599678462,10.4625,126.21,126.13,35.0764]
[1764599678668,3.33,126.2,126.12,1.21]
[1764599678861,0.05104849,126.17,126.15,1.26273445]
[1764599679065,0.06020784,126.17,126.15,1.26236065]
[1764599679370,0.06020784,126.17,126.15,0.05236065]
[1764599680874,11.69789039,126.23,126.16,1.21]
[1764599680875,3.33,126.23,126.16,1.21]
[1764599681460,7.1317,126.22,126.16,1.21]
[1764599681865,0.05201106,126.2,126.18,0.05908647]
[1764599682068,3.38201106,126.2,126.18,0.05908647]
[1764599683876,3.33,126.19,126.12,8.3469]
[1764599684173,3.33,126.16,126.08,8.57737868]
[1764599684375,3.33,126.14,126.08,7.1393]
[1764599684977,0.05164252,126.12,126.1,1.3240952]
[1764599686076,0.05164252,126.12,126.11,1.27]
[1764599686374,0.05164252,126.12,126.1,7.1918952]
[1764599686577,0.05164252,126.12,126.1,36.4218952]
[1764599686973,0.05164252,126.12,126.1,98.4218952]
[1764599687175,0.05164252,126.12,126.11,1.27]
[1764599687377,7.133,126.2,126.13,1.21]
[1764599687783,3.33,126.21,126.14,7.1358]
[1764599688180,3.33,126.21,126.11,111.0294]
[1764599688476,3.33,126.21,126.12,27.94]
[1764599688674,0.05969208,126.18,126.15,0.05416543]
[1764599689676,0.05969208,126.18,126.15,1.26416543]
[1764599689877,0.05969208,126.18,126.16,1.22]
[1764599691770,36.30789039,126.28,126.18,1.16]
[1764599691977,3.33,126.27,126.19,1.16]
[1764599692178,3.33,126.27,126.2,7.1325]
[1764599692781,3.33,126.27,126.22,0.06025473]
[1764599692983,3.38753997,126.25,126.22,0.06025473]
[1764599695188,0.05753997,126.25,126.22,1.22025473]
[1764599695777,0.05753997,126.25,126.23,7.1309]
[1764599695984,0.05753997,126.25,126.23,8.2909]
[1764599696185,0.05753997,126.25,126.22,0.06025473]
[1764599696186,3.38753997,126.25,126.22,0.06025473]
[1764599696375,0.05753997,126.25,126.22,0.06025473]
[1764599696777,0.05753997,126.25,126.22,1.22025473]
[1764599697090,0.05753997,126.25,126.23,7.1309]
[1764599697286,0.05753997,126.25,126.22,1.22025473]
[1764599697484,0.05753997,126.25,126.23,1.16]
[1764599697882,36.26789039,126.35,126.26,1.1]
[1764599697883,3.33,126.35,126.26,1.1]
[1764599698187,3.33,126.35,126.28,7.128]
[1764599698386,3.33,126.39,126.31,1.1]
[1764599698585,3.33,126.39,126.27,127.66416907]
[1764599698777,3.33,126.39,126.32,0.05055126]
[1764599698778,0.05582076,126.34,126.32,0.05055126]
[1764599698982,0.05165583,126.34,126.32,0.05055126]
[1764599699591,0.05165583,126.34,126.32,1.15055126]
[1764599700382,0.00165583,126.34,126.33,36.1254]
[1764599700687,3.33,126.43,126.36,1.05]
[1764599700884,3.33,126.43,126.36,70.1732]
[1764599701081,3.33,126.41,126.31,110.8568]
[1764599701278,3.33,126.39,126.3,27.9]
[1764599701590,10.4494,126.44,126.35,1.05]
[1764599701789,110.7146,126.48,126.38,111.8414]
[1764599701790,4.84868062,126.45,126.38,111.8414]
[1764599701990,4.84868062,126.45,126.41,1.05]
[1764599702294,4.84868062,126.45,126.42,1.05]
[1764599702489,3.33,126.52,126.44,1.05]
[1764599702696,3.33,126.54,126.47,0.05900743]
[1764599702991,10.4437,126.54,126.49,0.0572248]
[1764599703181,3.33,126.57,126.49,0.0572248]
[1764599703386,110.5829,126.63,126.49,0.0572248]
[1764599703387,3.33,126.61,126.52,0.05732461]
[1764599703588,3.33,126.61,126.55,0.05863714]
[1764599703789,110.5655,126.65,126.55,0.05863714]
[1764599703790,110.5519,126.66,126.55,119.06962753]
[1764599703990,11.69789039,126.66,126.56,172.6342]
[1764599704185,11.69789039,126.66,126.59,0.05865519]
[1764599704186,3.33,126.65,126.59,0.05865519]
[1764599705293,3.33,126.64,126.51,117.7946]
[1764599705487,126.03899039,126.65,126.53,110.6594]
[1764599705794,3.33,126.65,126.56,126.11289039]
[1764599705997,3.33,126.65,126.57,27.94]
[1764599706195,0.05154766,126.62,126.6,0.05520825]
[1764599707798,4.96154766,126.62,126.53,7.1136]
[1764599708099,3.33,126.6,126.5,110.6885]
[1764599708491,3.33,126.57,126.49,27.94]
[1764599708690,3.33,126.57,126.48,138.6459]
[1764599708891,0.05182993,126.54,126.51,0.05429261]
[1764599709095,3.38182993,126.54,126.51,0.05429261]
[1764599709397,3.38182993,126.54,126.44,27.94]
[1764599709596,3.33,126.57,126.45,119.09999039]
[1764599709790,3.33,126.55,126.44,27.96]
[1764599710200,3.33,126.59,126.48,119.07179039]
[1764599710400,3.33,126.59,126.52,0.05953101]
[1764599710401,0.05411027,126.55,126.52,0.05953101]
[1764599710899,3.33,126.53,126.41,8.36789039]
[1764599711099,3.33,126.48,126.34,110.8282]
[1764599711403,3.33,126.46,126.35,36.34789039]
[1764599711890,0.05178093,126.42,126.39,0.06066981]
[1764599712091,3.33,126.5,126.39,110.84466981]
[1764599712309,3.33,126.5,126.4,27.98]
[1764599712600,3.33,126.5,126.4,138.7549]
[1764599712996,27.98,126.53,126.42,110.7575]
[1764599713202,0.06048688,126.49,126.46,0.05404298]
[1764599713800,3.39048688,126.49,126.46,0.05404298]
[1764599714796,3.33,126.47,126.35,28.0]
[1764599715100,3.33,126.47,126.35,138.8211]
[1764599715300,3.33,126.46,126.35,145.9453]
[1764599715499,23.87,126.55,126.37,110.801]
[1764599715800,3.38950328,126.46,126.43,0.05685541]
[1764599716004,3.33,126.44,126.32,110.8426]
[1764599716301,3.33,126.44,126.34,117.9505]
[1764599716505,3.33,126.44,126.34,7.1243]
[1764599716702,3.33,126.44,126.34,117.9546]
[1764599717106,3.33,126.48,126.39,110.7839]
[1764599717294,3.33,126.48,126.38,28.0]
[1764599717492,3.33,126.45,126.35,28.02]
[1764599717689,3.33,126.44,126.35,90.02]
[1764599718006,3.33,126.44,126.35,28.02]
[1764599718302,3.39026347,126.41,126.38,0.05790739]
[1764599718702,3.39026347,126.41,126.31,28.02]
[1764599718896,3.33,126.45,126.36,110.8127]
[1764599719095,3.33,126.49,126.38,110.7946]
[1764599719796,0.05189445,126.45,126.42,0.05044448]
[1764599721106,113.7688,126.52,126.42,0.05044448]
[1764599721401,3.09,126.51,126.41,7.1203]
[1764599721601,31.11,126.55,126.43,117.8658]
[1764599721902,3.09,126.49,126.47,0.05686284]
[1764599722399,0.06039688,126.5,126.47,28.07686284]
[1764599722594,3.09,126.58,126.47,140.37266284]
[1764599722794,3.09,126.58,126.47,138.7358]
[1764599723102,3.09,126.58,126.49,110.6916]
[1764599723294,3.09,126.58,126.48,138.7482]
[1764599723503,10.2017,126.58,126.49,7.116]
[1764599723800,0.06039971,126.55,126.52,0.05178952]
[1764599724900,3.15039971,126.55,126.52,0.05178952]
[1764599725696,0.06039971,126.55,126.52,0.05178952]
[1764599727108,3.15039971,126.55,126.52,0.05178952]
[1764599727604,3.15039971,126.55,126.46,35.1378]
[1764599727807,3.09,126.54,126.46,7.1178]
[1764599728107,10.2059,126.5,126.41,117.8856]
[1764599728408,10.2059,126.5,126.41,110.7648]
[1764599728707,0.05036606,126.47,126.44,110.80097112]
[1764599729007,0.05050533,126.47,126.44,110.796917]
[1764599729505,7.1144,126.53,126.45,28.02]
[1764599729709,3.4,126.54,126.47,110.715]
[1764599730003,7.113,126.56,126.47,110.715]
[1764599730197,114.0243,126.58,126.47,110.715]
[1764599730198,3.4,126.58,126.47,110.715]
[1764599730413,3.4,126.56,126.43,110.7492]
[1764599730595,0.05696828,126.51,126.48,0.05294031]
[1764599730802,3.45696828,126.51,126.48,0.05346388]
[1764599731305,3.4,126.46,126.36,94.88]
[1764599731500,3.4,126.46,126.36,122.9]
[1764599731701,3.4,126.44,126.35,7.1239]
[1764599732000,3.4,126.41,126.31,28.02]
[1764599732311,0.05736719,126.37,126.35,0.05624328]
[1764599732905,110.6852,126.51,126.38,110.7906]
[1764599733093,3.4,126.5,126.42,110.7594]
[1764599733493,3.4,126.54,126.44,110.7394]
[1764599733703,3.4,126.54,126.45,110.7323]
[1764599733901,0.05161308,126.51,126.48,0.05145793]
[1764599734506,0.05161308,126.51,126.48,7.16815793]
[1764599734709,0.05161308,126.51,126.48,110.75635793]
[1764599735105,0.05161308,126.51,126.48,28.09145793]
[1764599735710,0.05161308,126.51,126.49,110.698]
[1764599735904,0.05161308,126.51,126.48,138.79585793]
[1764599736211,0.05161308,126.51,126.48,0.05145793]
[1764599737002,3.45161308,126.51,126.48,0.05145793]
[1764599737808,0.05161308,126.51,126.48,0.05145793]
[1764599738205,3.4,126.6,126.51,110.681]